[Event "*** SCC Grand Prix: Titled Tuesday Blitz"]
[Site "Chess.com"]
[Date "2020.10.13"]
[Round "7"]
[White "Ave_Mariia"]
[Black "NewBornNow"]
[Result "1-0"]
[WhiteElo "2519"]
[BlackElo "2639"]
[TimeControl "180+1"]
[EndTime "11:16:21 PDT"]
[Termination "Ave_Mariia won on time"]

1. d4 {[%clk 0:03:00.9]} 1... Nf6 {[%clk 0:02:57.2]} 2. c4 {[%clk 0:03:00.9]}
2... Nc6 {[%clk 0:02:56]} 3. Nf3 {[%clk 0:02:55.4]} 3... e6 {[%clk 0:02:55]} 4.
g3 {[%clk 0:02:55]} 4... Bb4+ {[%clk 0:02:53.5]} 5. Nbd2 {[%clk 0:02:48.8]} 5...
d5 {[%clk 0:02:51.5]} 6. Qc2 {[%clk 0:02:37.3]} 6... dxc4 {[%clk 0:02:50.8]} 7.
Qxc4 {[%clk 0:02:37.1]} 7... Qd5 {[%clk 0:02:49.6]} 8. Qxd5 {[%clk 0:02:28]}
8... exd5 {[%clk 0:02:48.7]} 9. Bg2 {[%clk 0:02:28.3]} 9... O-O {[%clk 0:02:48]}
10. O-O {[%clk 0:02:28.3]} 10... Ne4 {[%clk 0:02:38.9]} 11. Rd1 {[%clk 0:02:16]}
11... f5 {[%clk 0:02:20.6]} 12. Nf1 {[%clk 0:02:07]} 12... Bd6 {[%clk
0:02:09.3]} 13. Ne5 {[%clk 0:01:57.5]} 13... Nxe5 {[%clk 0:01:50.8]} 14. dxe5
{[%clk 0:01:57.7]} 14... Bxe5 {[%clk 0:01:49.8]} 15. Rxd5 {[%clk 0:01:57.6]}
15... Re8 {[%clk 0:01:44.2]} 16. Bf4 {[%clk 0:01:55.3]} 16... Bxb2 {[%clk
0:01:36.1]} 17. Rb1 {[%clk 0:01:51.9]} 17... Bf6 {[%clk 0:01:28.4]} 18. Bxc7
{[%clk 0:01:51.4]} 18... Nc3 {[%clk 0:01:24.6]} 19. Rbd1 {[%clk 0:01:40.3]}
19... Nxd1 {[%clk 0:01:23]} 20. Rxd1 {[%clk 0:01:39.1]} 20... Rxe2 {[%clk
0:01:14.9]} 21. Ne3 {[%clk 0:01:36.6]} 21... Be6 {[%clk 0:01:02.3]} 22. Bxb7
{[%clk 0:01:35.6]} 22... Rf8 {[%clk 0:00:58.6]} 23. a3 {[%clk 0:01:18.3]} 23...
Ra2 {[%clk 0:00:47.6]} 24. Nd5 {[%clk 0:01:09]} 24... Rxa3 {[%clk 0:00:23.9]}
25. Bd6 {[%clk 0:01:08.5]} 25... Rb3 {[%clk 0:00:13.1]} 26. Bxf8 {[%clk
0:01:03.6]} 26... Rxb7 {[%clk 0:00:12.1]} 27. Nxf6+ {[%clk 0:01:02.9]} 27...
Kxf8 {[%clk 0:00:11.9]} 28. Nxh7+ {[%clk 0:01:00.1]} 28... Ke7 {[%clk
0:00:10.3]} 29. Ng5 {[%clk 0:00:58.8]} 29... a5 {[%clk 0:00:04.9]} 30. Nxe6
{[%clk 0:00:55.3]} 30... Kxe6 {[%clk 0:00:01.8]} 31. Kf1 {[%clk 0:00:50.1]}
31... Ra7 {[%clk 0:00:02.6]} 32. Ke2 {[%clk 0:00:49.9]} 1-0

[Event "*** SCC Grand Prix: Titled Tuesday Blitz"]
[Site "Chess.com"]
[Date "2020.10.13"]
[Round "7"]
[White "Shivagami"]
[Black "Nemsko"]
[Result "0-1"]
[WhiteElo "2237"]
[BlackElo "2364"]
[TimeControl "180+1"]
[EndTime "11:16:23 PDT"]
[Termination "Nemsko won by resignation"]

1. e4 {[%clk 0:03:00.5]} 1... e5 {[%clk 0:02:58.1]} 2. Nc3 {[%clk 0:02:59.1]}
2... Nc6 {[%clk 0:02:57.5]} 3. f4 {[%clk 0:02:58.6]} 3... d6 {[%clk 0:02:51.4]}
4. Nf3 {[%clk 0:02:58]} 4... Nf6 {[%clk 0:02:45]} 5. Bc4 {[%clk 0:02:56.1]} 5...
Bg4 {[%clk 0:02:41.8]} 6. O-O {[%clk 0:02:34.4]} 6... Qd7 {[%clk 0:02:27.4]} 7.
h3 {[%clk 0:02:24.6]} 7... Bxf3 {[%clk 0:02:21.9]} 8. Rxf3 {[%clk 0:02:25.5]}
8... O-O-O {[%clk 0:02:21.1]} 9. d3 {[%clk 0:02:25.1]} 9... Nd4 {[%clk
0:02:17.1]} 10. Rf1 {[%clk 0:02:24.2]} 10... Kb8 {[%clk 0:02:03.5]} 11. Be3
{[%clk 0:02:23.3]} 11... c5 {[%clk 0:01:52.6]} 12. fxe5 {[%clk 0:02:18.8]} 12...
dxe5 {[%clk 0:01:53.5]} 13. Nd5 {[%clk 0:02:18.3]} 13... Nxd5 {[%clk 0:01:48.4]}
14. Bxd5 {[%clk 0:02:17.8]} 14... f6 {[%clk 0:01:48.9]} 15. c3 {[%clk
0:02:04.1]} 15... Ne6 {[%clk 0:01:43.1]} 16. b4 {[%clk 0:02:03.7]} 16... Nc7
{[%clk 0:01:38.8]} 17. c4 {[%clk 0:01:30.4]} 17... Nxd5 {[%clk 0:01:39.7]} 18.
exd5 {[%clk 0:01:27.4]} 18... cxb4 {[%clk 0:01:34.9]} 19. Rb1 {[%clk 0:01:24.8]}
19... Qc7 {[%clk 0:01:27.2]} 20. Qa4 {[%clk 0:01:19.8]} 20... Bc5 {[%clk
0:01:26]} 21. Bf2 {[%clk 0:01:03.4]} 21... Rd6 {[%clk 0:01:12]} 22. Bxc5 {[%clk
0:00:31]} 22... Qxc5+ {[%clk 0:01:12.9]} 23. Kh2 {[%clk 0:00:31.4]} 23... Rb6
{[%clk 0:01:09.7]} 24. Qd7 {[%clk 0:00:27.1]} 24... Qc7 {[%clk 0:01:08.6]} 25.
Qg4 {[%clk 0:00:19.3]} 25... e4+ {[%clk 0:01:05.6]} 26. Kh1 {[%clk 0:00:17.2]}
26... exd3 {[%clk 0:01:05]} 27. Qd4 {[%clk 0:00:14.5]} 27... Rc8 {[%clk
0:01:02.2]} 28. Rfc1 {[%clk 0:00:12.8]} 28... Qg3 {[%clk 0:00:43.1]} 29. Rb3
{[%clk 0:00:10.8]} 29... d2 {[%clk 0:00:37.6]} 30. Rd1 {[%clk 0:00:10.7]} 30...
Qe1+ {[%clk 0:00:36.4]} 0-1

[Event "*** SCC Grand Prix: Titled Tuesday Blitz"]
[Site "Chess.com"]
[Date "2020.10.13"]
[Round "7"]
[White "Stouuf"]
[Black "DenLaz"]
[Result "1-0"]
[WhiteElo "2611"]
[BlackElo "2794"]
[TimeControl "180+1"]
[EndTime "11:16:24 PDT"]
[Termination "Stouuf won by checkmate"]

1. e4 {[%clk 0:03:00.9]} 1... e5 {[%clk 0:02:59.8]} 2. Nf3 {[%clk 0:02:58.9]}
2... Nc6 {[%clk 0:02:59.7]} 3. d4 {[%clk 0:02:59.2]} 3... exd4 {[%clk
0:02:59.7]} 4. Nxd4 {[%clk 0:03:00.1]} 4... Bc5 {[%clk 0:02:59.2]} 5. Nxc6
{[%clk 0:03:00]} 5... Qf6 {[%clk 0:02:58.6]} 6. Qf3 {[%clk 0:02:59.8]} 6... dxc6
{[%clk 0:02:59]} 7. Bc4 {[%clk 0:02:58.4]} 7... Bd7 {[%clk 0:02:51.6]} 8. O-O
{[%clk 0:02:50.7]} 8... O-O-O {[%clk 0:02:24.1]} 9. Qg3 {[%clk 0:02:44.3]} 9...
Bd6 {[%clk 0:02:06.2]} 10. Qe3 {[%clk 0:02:31.6]} 10... Kb8 {[%clk 0:02:03.1]}
11. Nd2 {[%clk 0:02:23.6]} 11... Nh6 {[%clk 0:02:00.2]} 12. h3 {[%clk
0:02:22.5]} 12... Bf4 {[%clk 0:01:59]} 13. Qf3 {[%clk 0:02:20.2]} 13... g5
{[%clk 0:01:56.8]} 14. Nb3 {[%clk 0:02:16.4]} 14... Qe5 {[%clk 0:01:55.4]} 15.
Bxf4 {[%clk 0:02:13.4]} 15... gxf4 {[%clk 0:01:56.3]} 16. Rad1 {[%clk
0:02:12.4]} 16... f6 {[%clk 0:01:47]} 17. c3 {[%clk 0:01:50.9]} 17... b5 {[%clk
0:01:44.7]} 18. Be2 {[%clk 0:01:47.6]} 18... Nf7 {[%clk 0:01:45]} 19. Qh5 {[%clk
0:01:33]} 19... Qxh5 {[%clk 0:01:41.4]} 20. Bxh5 {[%clk 0:01:33.9]} 20... Ne5
{[%clk 0:01:42.1]} 21. Nc5 {[%clk 0:01:32.6]} 21... Bc8 {[%clk 0:01:39.1]} 22.
Rxd8 {[%clk 0:01:29.4]} 22... Rxd8 {[%clk 0:01:37.9]} 23. Rd1 {[%clk 0:01:30.2]}
23... Rd6 {[%clk 0:01:37.9]} 24. b4 {[%clk 0:01:27.3]} 24... f3 {[%clk 0:01:32]}
25. Rd4 {[%clk 0:01:24]} 25... fxg2 {[%clk 0:01:27.7]} 26. f4 {[%clk 0:01:23.5]}
26... Nc4 {[%clk 0:01:27.6]} 27. Kxg2 {[%clk 0:01:22.1]} 27... a5 {[%clk
0:01:18.4]} 28. bxa5 {[%clk 0:01:21.2]} 28... Nxa5 {[%clk 0:01:17.3]} 29. e5
{[%clk 0:01:19.7]} 29... fxe5 {[%clk 0:01:16.6]} 30. fxe5 {[%clk 0:01:20.6]}
30... Rh6 {[%clk 0:01:11.5]} 31. Bg4 {[%clk 0:01:19.1]} 31... Bxg4 {[%clk
0:01:10.3]} 32. hxg4 {[%clk 0:01:19.7]} 32... Nb7 {[%clk 0:00:55.1]} 33. e6
{[%clk 0:01:19.7]} 33... Nd6 {[%clk 0:00:55.4]} 34. Rxd6 {[%clk 0:01:10.1]}
34... cxd6 {[%clk 0:00:55.1]} 35. e7 {[%clk 0:01:10.7]} 35... dxc5 {[%clk
0:00:51.4]} 36. e8=Q+ {[%clk 0:01:11.1]} 36... Kb7 {[%clk 0:00:52.3]} 37. Qe7+
{[%clk 0:01:06.8]} 37... Kb6 {[%clk 0:00:52]} 38. Qd8+ {[%clk 0:01:07.1]} 38...
Kb7 {[%clk 0:00:52.5]} 39. Qd7+ {[%clk 0:01:07.6]} 39... Kb6 {[%clk 0:00:52.9]}
40. Qc8 {[%clk 0:01:07.3]} 40... Rg6 {[%clk 0:00:51.5]} 41. Kf3 {[%clk
0:01:02.9]} 41... c4 {[%clk 0:00:49.8]} 42. Qb8+ {[%clk 0:01:01.8]} 42... Ka6
{[%clk 0:00:48.5]} 43. Qc7 {[%clk 0:00:50.9]} 43... h6 {[%clk 0:00:45.1]} 44.
Kf4 {[%clk 0:00:49.4]} 44... Rg5 {[%clk 0:00:40.1]} 45. Qxc6+ {[%clk 0:00:48.6]}
45... Ka5 {[%clk 0:00:41]} 46. Qxh6 {[%clk 0:00:47.9]} 46... Rd5 {[%clk
0:00:41.4]} 47. Qc6 {[%clk 0:00:47]} 47... Rd3 {[%clk 0:00:42.3]} 48. Qa8+
{[%clk 0:00:43.6]} 48... Kb6 {[%clk 0:00:42.8]} 49. Qb8+ {[%clk 0:00:43.9]}
49... Ka5 {[%clk 0:00:42.7]} 50. Qa7# {[%clk 0:00:41.4]} 1-0

[Event "*** SCC Grand Prix: Titled Tuesday Blitz"]
[Site "Chess.com"]
[Date "2020.10.13"]
[Round "7"]
[White "Sueetin"]
[Black "markberk"]
[Result "1-0"]
[WhiteElo "2280"]
[BlackElo "2391"]
[TimeControl "180+1"]
[EndTime "11:16:24 PDT"]
[Termination "Sueetin won by checkmate"]

1. d4 {[%clk 0:03:00.9]} 1... f5 {[%clk 0:02:58.3]} 2. Nc3 {[%clk 0:03:00.3]}
2... Nf6 {[%clk 0:02:57.5]} 3. Bg5 {[%clk 0:03:00.2]} 3... d5 {[%clk 0:02:56.6]}
4. Bxf6 {[%clk 0:03:00.3]} 4... exf6 {[%clk 0:02:55.4]} 5. e3 {[%clk 0:02:58.8]}
5... c6 {[%clk 0:02:54.6]} 6. Bd3 {[%clk 0:02:52]} 6... Bd6 {[%clk 0:02:53.1]}
7. Nge2 {[%clk 0:02:27.8]} 7... Na6 {[%clk 0:02:52.7]} 8. a3 {[%clk 0:02:27.1]}
8... O-O {[%clk 0:02:47]} 9. Ng3 {[%clk 0:02:24.3]} 9... g6 {[%clk 0:02:45.9]}
10. Nce2 {[%clk 0:02:19.1]} 10... Nc7 {[%clk 0:02:40.7]} 11. h4 {[%clk
0:02:18.4]} 11... h5 {[%clk 0:02:38.6]} 12. Nf4 {[%clk 0:02:13.6]} 12... Bxf4
{[%clk 0:02:26.3]} 13. exf4 {[%clk 0:02:14.5]} 13... Ne6 {[%clk 0:02:20.4]} 14.
Qd2 {[%clk 0:02:11.9]} 14... Nxd4 {[%clk 0:02:15.1]} 15. O-O-O {[%clk 0:02:12]}
15... Kg7 {[%clk 0:02:08.5]} 16. Rde1 {[%clk 0:01:44.1]} 16... Bd7 {[%clk
0:02:00.6]} 17. Kb1 {[%clk 0:01:31.5]} 17... Qc7 {[%clk 0:01:43.7]} 18. c3
{[%clk 0:01:01.1]} 18... Ne6 {[%clk 0:01:42]} 19. Bxf5 {[%clk 0:01:01]} 19...
gxf5 {[%clk 0:01:33.4]} 20. Nxf5+ {[%clk 0:00:58.4]} 20... Kg6 {[%clk
0:00:57.1]} 21. Ne7+ {[%clk 0:00:41.3]} 21... Kf7 {[%clk 0:00:44.8]} 22. f5
{[%clk 0:00:37.6]} 22... Kxe7 {[%clk 0:00:33.8]} 23. Qh6 {[%clk 0:00:32.3]}
23... Rf7 {[%clk 0:00:16.3]} 24. Rxe6+ {[%clk 0:00:31]} 24... Bxe6 {[%clk
0:00:15.5]} 25. Re1 {[%clk 0:00:31.5]} 25... Kd6 {[%clk 0:00:07.2]} 26. fxe6
{[%clk 0:00:23.5]} 26... Re7 {[%clk 0:00:06.1]} 27. Qf4+ {[%clk 0:00:23.9]}
27... Kc5 {[%clk 0:00:05.8]} 28. Qb4# {[%clk 0:00:24.5]} 1-0

[Event "*** SCC Grand Prix: Titled Tuesday Blitz"]
[Site "Chess.com"]
[Date "2020.10.13"]
[Round "7"]
[White "deribas12345"]
[Black "Akmal_Fayzullaev"]
[Result "1-0"]
[WhiteElo "2675"]
[BlackElo "2408"]
[TimeControl "180+1"]
[EndTime "11:16:25 PDT"]
[Termination "deribas12345 won on time"]

1. d4 {[%clk 0:03:00.4]} 1... Nf6 {[%clk 0:02:57.4]} 2. c4 {[%clk 0:02:59.1]}
2... g6 {[%clk 0:02:57.5]} 3. Nc3 {[%clk 0:02:59.7]} 3... Bg7 {[%clk 0:02:58.4]}
4. e4 {[%clk 0:03:00.3]} 4... d6 {[%clk 0:02:59.3]} 5. Nge2 {[%clk 0:03:00.8]}
5... O-O {[%clk 0:03:00.2]} 6. Ng3 {[%clk 0:03:01.4]} 6... e5 {[%clk 0:02:56.9]}
7. d5 {[%clk 0:03:01.2]} 7... c6 {[%clk 0:02:56.5]} 8. Be2 {[%clk 0:03:01.1]}
8... cxd5 {[%clk 0:02:57.4]} 9. cxd5 {[%clk 0:03:01.7]} 9... a6 {[%clk
0:02:55.4]} 10. a4 {[%clk 0:03:01]} 10... h5 {[%clk 0:02:54.6]} 11. Bg5 {[%clk
0:02:58.1]} 11... Qb6 {[%clk 0:02:52.7]} 12. O-O {[%clk 0:02:55.1]} 12... Nbd7
{[%clk 0:02:38]} 13. a5 {[%clk 0:02:53.9]} 13... Qxb2 {[%clk 0:02:31.4]} 14. Na4
{[%clk 0:02:49.7]} 14... Qb4 {[%clk 0:02:29.8]} 15. Bd2 {[%clk 0:02:38.9]} 15...
Qd4 {[%clk 0:02:27.9]} 16. Qc2 {[%clk 0:02:37.9]} 16... h4 {[%clk 0:02:22.4]}
17. Be3 {[%clk 0:02:34.5]} 17... Qb4 {[%clk 0:02:15.4]} 18. Rfb1 {[%clk
0:02:32.8]} 18... Qxa5 {[%clk 0:02:12.8]} 19. Nb6 {[%clk 0:02:29.6]} 19... Qxa1
{[%clk 0:02:11.6]} 20. Rxa1 {[%clk 0:02:29.5]} 20... Nxb6 {[%clk 0:02:11.9]} 21.
Bxb6 {[%clk 0:02:28.7]} 21... hxg3 {[%clk 0:02:12.6]} 22. hxg3 {[%clk
0:02:29.3]} 22... Bd7 {[%clk 0:01:55.8]} 23. Qc7 {[%clk 0:02:26.2]} 23... Bb5
{[%clk 0:01:54.6]} 24. Bxb5 {[%clk 0:02:05.6]} 24... axb5 {[%clk 0:01:55.5]} 25.
Rxa8 {[%clk 0:02:04.5]} 25... Rxa8 {[%clk 0:01:56.4]} 26. f3 {[%clk 0:02:05.1]}
26... Bf8 {[%clk 0:01:50.1]} 27. Qxb7 {[%clk 0:02:04.3]} 27... Ra2 {[%clk
0:01:48.4]} 28. Bd8 {[%clk 0:02:00.4]} 28... Nh5 {[%clk 0:01:46.4]} 29. Qxb5
{[%clk 0:01:42.1]} 29... Nxg3 {[%clk 0:01:43.5]} 30. Kh2 {[%clk 0:01:34]} 30...
Nh5 {[%clk 0:01:38.8]} 31. Bg5 {[%clk 0:01:33.5]} 31... Nf4 {[%clk 0:01:19.7]}
32. Bxf4 {[%clk 0:01:33]} 32... exf4 {[%clk 0:01:18]} 33. Qe8 {[%clk 0:01:27.5]}
33... Ra7 {[%clk 0:00:54.9]} 34. Kh3 {[%clk 0:01:23]} 34... Kg7 {[%clk
0:00:51.8]} 35. Qd8 {[%clk 0:01:21.8]} 35... Be7 {[%clk 0:00:49.9]} 36. Qb6
{[%clk 0:01:19.3]} 36... Ra2 {[%clk 0:00:46.9]} 37. Qd4+ {[%clk 0:01:06.4]}
37... Bf6 {[%clk 0:00:45.2]} 38. Qc4 {[%clk 0:01:06]} 38... Be5 {[%clk
0:00:42.4]} 39. Qxa2 {[%clk 0:01:04.3]} 1-0

[Event "*** SCC Grand Prix: Titled Tuesday Blitz"]
[Site "Chess.com"]
[Date "2020.10.13"]
[Round "7"]
[White "nochewycandy"]
[Black "JuliaEfremova"]
[Result "1-0"]
[WhiteElo "2540"]
[BlackElo "2330"]
[TimeControl "180+1"]
[EndTime "11:16:26 PDT"]
[Termination "nochewycandy won by resignation"]

1. e4 {[%clk 0:03:00.9]} 1... d5 {[%clk 0:02:58.8]} 2. exd5 {[%clk 0:02:59.5]}
2... Qxd5 {[%clk 0:02:59.3]} 3. Nf3 {[%clk 0:02:59.8]} 3... Nf6 {[%clk
0:02:58.5]} 4. d4 {[%clk 0:03:00.1]} 4... Bg4 {[%clk 0:02:57]} 5. Be2 {[%clk
0:02:58.6]} 5... e6 {[%clk 0:02:55.6]} 6. c4 {[%clk 0:02:58.7]} 6... Qd8 {[%clk
0:02:53.6]} 7. O-O {[%clk 0:02:57.8]} 7... Be7 {[%clk 0:02:53.7]} 8. h3 {[%clk
0:02:56.3]} 8... Bh5 {[%clk 0:02:52.5]} 9. Nc3 {[%clk 0:02:56.9]} 9... c6 {[%clk
0:02:51.7]} 10. Be3 {[%clk 0:02:54.7]} 10... O-O {[%clk 0:02:50.8]} 11. Qb3
{[%clk 0:02:54.6]} 11... Qc7 {[%clk 0:02:46.9]} 12. Rad1 {[%clk 0:02:47.8]}
12... Nbd7 {[%clk 0:02:45.8]} 13. d5 {[%clk 0:02:43.6]} 13... cxd5 {[%clk
0:02:44.4]} 14. cxd5 {[%clk 0:02:43.1]} 14... exd5 {[%clk 0:02:43.7]} 15. Nxd5
{[%clk 0:02:43.1]} 15... Nxd5 {[%clk 0:02:42.4]} 16. Qxd5 {[%clk 0:02:41.5]}
16... Nf6 {[%clk 0:02:42.2]} 17. Qb3 {[%clk 0:02:38.1]} 17... b6 {[%clk
0:02:24.2]} 18. Rfe1 {[%clk 0:02:35.7]} 18... Rfd8 {[%clk 0:02:22.2]} 19. Ng5
{[%clk 0:02:23.5]} 19... Rxd1 {[%clk 0:02:09.4]} 20. Bxd1 {[%clk 0:02:21.9]}
20... Bg6 {[%clk 0:01:57.7]} 21. Bf3 {[%clk 0:02:15]} 21... Rf8 {[%clk
0:01:52.4]} 22. Bd2 {[%clk 0:02:00.9]} 22... h6 {[%clk 0:01:49.7]} 23. Ne4
{[%clk 0:01:56.8]} 23... Nxe4 {[%clk 0:01:45.7]} 24. Bxe4 {[%clk 0:01:57.7]}
24... Bxe4 {[%clk 0:01:45.8]} 25. Rxe4 {[%clk 0:01:58.6]} 25... Bc5 {[%clk
0:01:39.4]} 26. Rg4 {[%clk 0:01:50.1]} 26... Qd6 {[%clk 0:01:31.9]} 27. Bc3
{[%clk 0:01:46.1]} 27... g6 {[%clk 0:01:24.6]} 28. Qc2 {[%clk 0:01:33.8]} 28...
Rd8 {[%clk 0:01:17.8]} 29. Qe4 {[%clk 0:01:12.8]} 29... Qd1+ {[%clk 0:01:05.7]}
30. Kh2 {[%clk 0:01:12.1]} 30... Bd6+ {[%clk 0:01:03.5]} 31. g3 {[%clk
0:01:08.7]} 31... Kh7 {[%clk 0:00:59.4]} 32. Rh4 {[%clk 0:00:50.9]} 32... Qc1
{[%clk 0:00:36.2]} 33. Qb7 {[%clk 0:00:47.9]} 33... Kg8 {[%clk 0:00:26.7]} 34.
Rg4 {[%clk 0:00:43.7]} 34... Qc2 {[%clk 0:00:20.4]} 35. Qf3 {[%clk 0:00:37.4]}
35... Bf8 {[%clk 0:00:17.9]} 36. Qf6 {[%clk 0:00:36.6]} 36... Qxc3 {[%clk
0:00:12.6]} 37. bxc3 {[%clk 0:00:35.5]} 37... Bg7 {[%clk 0:00:13.5]} 38. Qxd8+
{[%clk 0:00:35.4]} 1-0

[Event "*** SCC Grand Prix: Titled Tuesday Blitz"]
[Site "Chess.com"]
[Date "2020.10.13"]
[Round "7"]
[White "tlomigtlis"]
[Black "bazar-wokzal"]
[Result "1-0"]
[WhiteElo "2641"]
[BlackElo "2506"]
[TimeControl "180+1"]
[EndTime "11:16:28 PDT"]
[Termination "tlomigtlis won on time"]

1. d4 {[%clk 0:03:00.9]} 1... Nf6 {[%clk 0:02:59.4]} 2. c4 {[%clk 0:03:01.2]}
2... Nc6 {[%clk 0:02:59.3]} 3. Nc3 {[%clk 0:03:00.9]} 3... e5 {[%clk 0:02:59.2]}
4. d5 {[%clk 0:03:00.2]} 4... Ne7 {[%clk 0:02:59.3]} 5. e4 {[%clk 0:02:59.9]}
5... Ng6 {[%clk 0:02:58.7]} 6. g3 {[%clk 0:02:59.9]} 6... Bc5 {[%clk 0:02:56.5]}
7. Bg2 {[%clk 0:02:59.4]} 7... d6 {[%clk 0:02:52]} 8. Nf3 {[%clk 0:02:59.2]}
8... a5 {[%clk 0:02:49.2]} 9. O-O {[%clk 0:02:58.2]} 9... O-O {[%clk 0:02:45.7]}
10. a3 {[%clk 0:02:54.3]} 10... c6 {[%clk 0:02:45.7]} 11. Rb1 {[%clk 0:02:52.5]}
11... cxd5 {[%clk 0:02:44.8]} 12. cxd5 {[%clk 0:02:52.8]} 12... Bd7 {[%clk
0:02:43.9]} 13. b4 {[%clk 0:02:52.1]} 13... axb4 {[%clk 0:02:43.7]} 14. axb4
{[%clk 0:02:53]} 14... Bb6 {[%clk 0:02:44]} 15. Nd2 {[%clk 0:02:41.3]} 15... Rc8
{[%clk 0:02:26.1]} 16. Qb3 {[%clk 0:02:39.3]} 16... Qc7 {[%clk 0:02:07.8]} 17.
Bb2 {[%clk 0:02:31.8]} 17... h5 {[%clk 0:01:48]} 18. h4 {[%clk 0:02:26.2]} 18...
Ng4 {[%clk 0:01:41]} 19. Rbc1 {[%clk 0:02:14.8]} 19... Qb8 {[%clk 0:01:16.5]}
20. Nc4 {[%clk 0:02:07.8]} 20... Bd4 {[%clk 0:01:09]} 21. Ne2 {[%clk 0:01:53.6]}
21... Ba7 {[%clk 0:01:00.3]} 22. b5 {[%clk 0:01:45]} 22... Bc5 {[%clk
0:00:57.9]} 23. Ba3 {[%clk 0:01:41]} 23... b6 {[%clk 0:00:49.2]} 24. Bxc5 {[%clk
0:01:37.9]} 24... bxc5 {[%clk 0:00:47.5]} 25. b6 {[%clk 0:01:36.6]} 25... Nf6
{[%clk 0:00:32.7]} 26. b7 {[%clk 0:01:34.6]} 26... Rcd8 {[%clk 0:00:32.6]} 27.
Ra1 {[%clk 0:01:33.9]} 27... Ne8 {[%clk 0:00:31.2]} 28. Ra8 {[%clk 0:01:31.3]}
28... Qxa8 {[%clk 0:00:24.7]} 29. bxa8=Q {[%clk 0:01:32.2]} 29... Rxa8 {[%clk
0:00:25.2]} 30. Qb6 {[%clk 0:01:32.7]} 30... Ra2 {[%clk 0:00:21.1]} 31. Nc1
{[%clk 0:01:29.8]} 31... Rc2 {[%clk 0:00:20.9]} 32. Nxd6 {[%clk 0:01:28.4]}
32... Nxd6 {[%clk 0:00:18.3]} 33. Qxd6 {[%clk 0:01:29.3]} 33... Bb5 {[%clk
0:00:18.8]} 34. Rd1 {[%clk 0:01:27.8]} 34... c4 {[%clk 0:00:19.4]} 35. Qb4
{[%clk 0:01:25.6]} 35... Ba6 {[%clk 0:00:18.5]} 36. Bf1 {[%clk 0:01:23]} 36...
Ra8 {[%clk 0:00:16.6]} 37. d6 {[%clk 0:01:20.2]} 37... Nf8 {[%clk 0:00:16.1]}
38. Ne2 {[%clk 0:01:17.6]} 38... Bc8 {[%clk 0:00:13.9]} 39. Rc1 {[%clk
0:01:13.7]} 39... Raa2 {[%clk 0:00:11.8]} 40. Rxc2 {[%clk 0:01:11.5]} 40... Rxc2
{[%clk 0:00:12.7]} 41. Nc3 {[%clk 0:01:11.2]} 41... Bg4 {[%clk 0:00:09.3]} 42.
Qxc4 {[%clk 0:01:04.9]} 42... Ne6 {[%clk 0:00:04.9]} 43. d7 {[%clk 0:01:03.7]}
43... Kh7 {[%clk 0:00:03.8]} 44. Qd3 {[%clk 0:01:03.2]} 44... Rc1 {[%clk
0:00:01.9]} 45. Ne2 {[%clk 0:01:03.2]} 1-0

[Event "*** SCC Grand Prix: Titled Tuesday Blitz"]
[Site "Chess.com"]
[Date "2020.10.13"]
[Round "7"]
[White "queen_iryna"]
[Black "simplerXiao"]
[Result "0-1"]
[WhiteElo "2296"]
[BlackElo "2433"]
[TimeControl "180+1"]
[EndTime "11:16:28 PDT"]
[Termination "simplerXiao won by resignation"]

1. e4 {[%clk 0:03:00.9]} 1... c5 {[%clk 0:02:58.2]} 2. Nf3 {[%clk 0:03:00.8]}
2... e6 {[%clk 0:02:57.6]} 3. c4 {[%clk 0:03:00.2]} 3... Nc6 {[%clk 0:02:56.4]}
4. Nc3 {[%clk 0:03:00.3]} 4... d6 {[%clk 0:02:54.6]} 5. d4 {[%clk 0:02:59.5]}
5... cxd4 {[%clk 0:02:54.1]} 6. Nxd4 {[%clk 0:03:00.4]} 6... Nf6 {[%clk
0:02:54.2]} 7. Be2 {[%clk 0:02:58.9]} 7... Be7 {[%clk 0:02:54.2]} 8. O-O {[%clk
0:02:58.6]} 8... O-O {[%clk 0:02:54.1]} 9. Be3 {[%clk 0:02:59]} 9... a6 {[%clk
0:02:53.6]} 10. Qd2 {[%clk 0:02:56]} 10... Qc7 {[%clk 0:02:50.2]} 11. Rfc1
{[%clk 0:02:55.7]} 11... Ne5 {[%clk 0:02:47.2]} 12. f3 {[%clk 0:02:55.7]} 12...
b6 {[%clk 0:02:45.6]} 13. a4 {[%clk 0:02:52.6]} 13... Bb7 {[%clk 0:02:43.3]} 14.
a5 {[%clk 0:02:51.8]} 14... bxa5 {[%clk 0:02:42]} 15. Na4 {[%clk 0:02:50.5]}
15... Rac8 {[%clk 0:02:30.2]} 16. Nb3 {[%clk 0:02:48.7]} 16... Qb8 {[%clk
0:02:24.8]} 17. Nxa5 {[%clk 0:02:44.7]} 17... Ba8 {[%clk 0:02:20.9]} 18. Nb6
{[%clk 0:02:20.7]} 18... Rc7 {[%clk 0:02:16.4]} 19. b4 {[%clk 0:02:13.5]} 19...
Ned7 {[%clk 0:02:03.9]} 20. Nxa8 {[%clk 0:02:11]} 20... Qxa8 {[%clk 0:02:03.3]}
21. b5 {[%clk 0:02:08.6]} 21... Nc5 {[%clk 0:01:49.3]} 22. Nc6 {[%clk
0:02:02.9]} 22... Rxc6 {[%clk 0:01:47.7]} 23. bxc6 {[%clk 0:02:02.8]} 23... Qxc6
{[%clk 0:01:47.7]} 24. Kh1 {[%clk 0:01:51.8]} 24... Nb3 {[%clk 0:01:41.6]} 25.
Qa2 {[%clk 0:01:34.7]} 25... Nxc1 {[%clk 0:01:40.4]} 26. Bxc1 {[%clk 0:01:34.8]}
26... Ra8 {[%clk 0:01:35.9]} 27. Be3 {[%clk 0:01:26.2]} 27... a5 {[%clk
0:01:34.6]} 28. Bd1 {[%clk 0:01:24]} 28... Nd7 {[%clk 0:01:30.9]} 29. Ba4 {[%clk
0:01:23.8]} 29... Qc7 {[%clk 0:01:30.8]} 30. Bb5 {[%clk 0:01:15.2]} 30... Nc5
{[%clk 0:01:28.4]} 31. Qb2 {[%clk 0:00:53.7]} 31... Bf6 {[%clk 0:01:24.7]} 32.
Bd4 {[%clk 0:00:44.8]} 32... Qe7 {[%clk 0:01:22.6]} 33. Rd1 {[%clk 0:00:29]}
33... a4 {[%clk 0:01:19.5]} 34. Bxf6 {[%clk 0:00:23.4]} 34... Qxf6 {[%clk
0:01:17.3]} 35. Qa3 {[%clk 0:00:13.9]} 35... Qe5 {[%clk 0:01:16.5]} 36. h3
{[%clk 0:00:12.8]} 36... g6 {[%clk 0:01:14.8]} 37. Bc6 {[%clk 0:00:12.4]} 37...
Rb8 {[%clk 0:01:12.7]} 38. Bb5 {[%clk 0:00:12.6]} 38... Ra8 {[%clk 0:01:11.9]}
39. Bc6 {[%clk 0:00:12.1]} 39... Ra7 {[%clk 0:01:12.3]} 40. Bb5 {[%clk
0:00:12.1]} 40... Kg7 {[%clk 0:01:11.4]} 41. Ra1 {[%clk 0:00:10.6]} 41... h5
{[%clk 0:01:11]} 42. Rd1 {[%clk 0:00:10.3]} 42... h4 {[%clk 0:01:10.9]} 43. Ra1
{[%clk 0:00:10.2]} 43... Qd4 {[%clk 0:01:07.3]} 44. Qc1 {[%clk 0:00:06.6]} 44...
Nb3 {[%clk 0:01:05.2]} 45. Qe1 {[%clk 0:00:03.7]} 45... Qxa1 {[%clk 0:01:03.9]}
0-1